[Event "Titled Tuesday Blitz April 26 Early 2022"]
[White "Popadic, Dragan"]
[Black "Jakubowski, Krzysztof"]
[WhiteFideId "913650"]
[BlackFideId "1112848"]
[WhiteElo "2203"]
[BlackElo "2365"]
[Result "1-0"]
[Round "08"]
[TimeControl "180+1"]
[Date "2022.04.26"]
[WhiteClock "0:00:07"]
[BlackClock "0:00:01"]

1. e4 {[%clk 0:02:59]}  c5 {[%clk 0:02:59]} 2. Nc3 {[%clk 0:02:59]}  e6 {[%clk 0:02:58]} 3. d3 {[%clk 0:02:58]}  Nc6 {[%clk 0:02:56]} 4. g4 {[%clk 0:02:58]}  a6 {[%clk 0:02:55]} 5. Bg2 {[%clk 0:02:58]}  b5 {[%clk 0:02:49]} 6. Nh3 {[%clk 0:02:58]}  Nge7 {[%clk 0:02:33]} 7. O-O {[%clk 0:02:55]}  Ng6 {[%clk 0:02:32]} 8. f4 {[%clk 0:02:53]}  Nh4 {[%clk 0:02:30]} 9. Bh1 {[%clk 0:02:53]}  h6 {[%clk 0:02:26]} 10. Be3 {[%clk 0:02:46]}  Be7 {[%clk 0:02:17]} 11. e5 {[%clk 0:02:28]}  Bb7 {[%clk 0:02:12]} 12. Ne4 {[%clk 0:02:27]}  Qb6 {[%clk 0:01:46]} 13. c3 {[%clk 0:02:18]}  f5 {[%clk 0:01:37]} 14. exf6 {[%clk 0:02:14]}  gxf6 {[%clk 0:01:33]} 15. b4 {[%clk 0:02:09]}  d6 {[%clk 0:01:32]} 16. f5 {[%clk 0:01:52]}  exf5 {[%clk 0:01:27]} 17. gxf5 {[%clk 0:01:52]}  O-O-O {[%clk 0:00:51]} 18. Qh5 {[%clk 0:01:38]}  Rhg8+ {[%clk 0:00:50]} 19. Ng3 {[%clk 0:01:38]}  Ne5 {[%clk 0:00:42]} 20. Qxh4 {[%clk 0:01:04]}  Ng4 {[%clk 0:00:41]} 21. Bxb7+ {[%clk 0:00:52]}  Kxb7 {[%clk 0:00:19]} 22. Rae1 {[%clk 0:00:43]}  Rde8 {[%clk 0:00:19]} 23. bxc5 {[%clk 0:00:39]}  dxc5 {[%clk 0:00:18]} 24. Bf4 {[%clk 0:00:32]}  c4+ {[%clk 0:00:15]} 25. d4 {[%clk 0:00:29]}  b4 {[%clk 0:00:15]} 26. Rb1 {[%clk 0:00:21]}  Ka7 {[%clk 0:00:12]} 27. Nf2 {[%clk 0:00:20]}  Nxf2 {[%clk 0:00:09]} 28. Rxf2 {[%clk 0:00:19]}  a5 {[%clk 0:00:04]} 29. cxb4 {[%clk 0:00:18]}  axb4 {[%clk 0:00:05]} 30. Bd2 {[%clk 0:00:17]}  Bd6 {[%clk 0:00:03]} 31. Kf1 {[%clk 0:00:14]}  Rc8 {[%clk 0:00:03]} 32. Ne4 {[%clk 0:00:13]}  c3 {[%clk 0:00:02]} 33. Be1 {[%clk 0:00:11]}  Bc7 {[%clk 0:00:01]} 34. Nc5 {[%clk 0:00:10]}  Qb5+ {[%clk 0:00:01]} 35. Re2 {[%clk 0:00:09]}  Rce8 {[%clk 0:00:01]} 36. Qf2 {[%clk 0:00:07]} 1-0


[Site "https://www.chess.com"]

[Event "Titled Tuesday Blitz April 26 Early 2022"]
[White "Prohorov, Olexandr"]
[Black "Manukian, Artak"]
[WhiteFideId "14105578"]
[BlackFideId "13301373"]
[WhiteElo "1993"]
[BlackElo "2341"]
[Result "1-0"]
[Round "08"]
[TimeControl "180+1"]
[Date "2022.04.26"]
[WhiteClock "0:00:34"]
[BlackClock "0:00:17"]

1. e4 {[%clk 0:03:00]}  c6 {[%clk 0:02:14]} 2. d4 {[%clk 0:03:00]}  d5 {[%clk 0:02:14]} 3. e5 {[%clk 0:03:01]}  Bf5 {[%clk 0:02:14]} 4. Nf3 {[%clk 0:03:02]}  e6 {[%clk 0:02:13]} 5. Be2 {[%clk 0:03:01]}  c5 {[%clk 0:02:13]} 6. c4 {[%clk 0:02:57]}  dxc4 {[%clk 0:02:13]} 7. Bxc4 {[%clk 0:02:54]}  Nc6 {[%clk 0:02:13]} 8. d5 {[%clk 0:02:50]}  exd5 {[%clk 0:02:12]} 9. Bxd5 {[%clk 0:02:47]}  Nge7 {[%clk 0:02:12]} 10. Bxc6+ {[%clk 0:02:27]}  Nxc6 {[%clk 0:02:11]} 11. Qb3 {[%clk 0:02:19]}  Nb4 {[%clk 0:01:56]} 12. O-O {[%clk 0:02:17]}  Nc2 {[%clk 0:01:26]} 13. e6 {[%clk 0:02:03]}  fxe6 {[%clk 0:01:18]} 14. Qxb7 {[%clk 0:02:03]}  Nxa1 {[%clk 0:01:08]} 15. Ne5 {[%clk 0:02:03]}  Be7 {[%clk 0:01:00]} 16. Bg5 {[%clk 0:01:44]}  Rb8 {[%clk 0:00:36]} 17. Qxa7 {[%clk 0:01:41]}  Rxb2 {[%clk 0:00:36]} 18. Nc3 {[%clk 0:01:31]}  Nc2 {[%clk 0:00:25]} 19. Bxe7 {[%clk 0:01:18]}  Qxe7 {[%clk 0:00:25]} 20. Qa8+ {[%clk 0:01:18]}  Qd8 {[%clk 0:00:25]} 21. Qc6+ {[%clk 0:01:14]}  Ke7 {[%clk 0:00:24]} 22. Rd1 {[%clk 0:01:04]}  Qc8 {[%clk 0:00:17]} 23. Rd7+ {[%clk 0:00:39]}  Ke8 {[%clk 0:00:17]} 24. Qxc8# {[%clk 0:00:34]} 1-0


[Site "https://www.chess.com"]

[Event "Titled Tuesday Blitz April 26 Early 2022"]
[White "Riehle, Marco"]
[Black "Yuan, Qingyu"]
[WhiteFideId "12904392"]
[BlackFideId "8609772"]
[WhiteElo "2462"]
[BlackElo "2359"]
[Result "0-1"]
[Round "08"]
[TimeControl "180+1"]
[Date "2022.04.26"]
[WhiteClock "0:00:06"]
[BlackClock "0:00:10"]

1. e4 {[%clk 0:03:00]}  c6 {[%clk 0:03:00]} 2. c4 {[%clk 0:03:00]}  d5 {[%clk 0:03:00]} 3. cxd5 {[%clk 0:03:01]}  cxd5 {[%clk 0:03:01]} 4. exd5 {[%clk 0:03:02]}  Nf6 {[%clk 0:03:02]} 5. Nc3 {[%clk 0:03:03]}  Nxd5 {[%clk 0:03:00]} 6. Nf3 {[%clk 0:03:03]}  Nc6 {[%clk 0:03:00]} 7. Bb5 {[%clk 0:03:02]}  g6 {[%clk 0:02:57]} 8. Qa4 {[%clk 0:03:01]}  Qd6 {[%clk 0:02:53]} 9. Qd4 {[%clk 0:03:00]}  Qe6+ {[%clk 0:02:21]} 10. Kd1 {[%clk 0:02:59]}  Nxc3+ {[%clk 0:01:56]} 11. dxc3 {[%clk 0:02:50]}  Qd7 {[%clk 0:01:34]} 12. Bxc6 {[%clk 0:02:39]}  bxc6 {[%clk 0:01:30]} 13. Be3 {[%clk 0:02:32]}  Bg7 {[%clk 0:01:27]} 14. Qxd7+ {[%clk 0:02:32]}  Bxd7 {[%clk 0:01:27]} 15. Bd4 {[%clk 0:02:32]}  f6 {[%clk 0:01:27]} 16. Re1 {[%clk 0:02:29]}  Kf7 {[%clk 0:01:27]} 17. b4 {[%clk 0:02:26]}  a5 {[%clk 0:01:25]} 18. Bc5 {[%clk 0:02:17]}  e5 {[%clk 0:01:21]} 19. Kc2 {[%clk 0:02:15]}  Rhd8 {[%clk 0:01:14]} 20. Red1 {[%clk 0:02:04]}  Bf5+ {[%clk 0:01:12]} 21. Kb2 {[%clk 0:02:04]}  a4 {[%clk 0:00:57]} 22. a3 {[%clk 0:01:54]}  Bd3 {[%clk 0:00:50]} 23. Rd2 {[%clk 0:01:41]}  Rd5 {[%clk 0:00:45]} 24. Ne1 {[%clk 0:01:30]}  Bc4 {[%clk 0:00:43]} 25. Rad1 {[%clk 0:01:26]}  Rad8 {[%clk 0:00:38]} 26. Rxd5 {[%clk 0:01:25]}  cxd5 {[%clk 0:00:37]} 27. Nc2 {[%clk 0:01:23]}  Ke6 {[%clk 0:00:35]} 28. Ne3 {[%clk 0:01:22]}  Bb3 {[%clk 0:00:35]} 29. Rd2 {[%clk 0:01:21]}  f5 {[%clk 0:00:32]} 30. f3 {[%clk 0:01:18]}  f4 {[%clk 0:00:32]} 31. Ng4 {[%clk 0:01:11]}  h5 {[%clk 0:00:30]} 32. Nf2 {[%clk 0:01:11]}  g5 {[%clk 0:00:30]} 33. Ne4 {[%clk 0:01:04]}  Kf5 {[%clk 0:00:23]} 34. Nd6+ {[%clk 0:00:52]}  Ke6 {[%clk 0:00:24]} 35. Ne4 {[%clk 0:00:53]}  Bh6 {[%clk 0:00:19]} 36. Bb6 {[%clk 0:00:50]}  Rb8 {[%clk 0:00:18]} 37. Nc5+ {[%clk 0:00:50]}  Kd6 {[%clk 0:00:18]} 38. Ba5 {[%clk 0:00:39]}  Bc4 {[%clk 0:00:16]} 39. Nxa4 {[%clk 0:00:37]}  Kc6 {[%clk 0:00:15]} 40. Nc5 {[%clk 0:00:34]}  Re8 {[%clk 0:00:12]} 41. a4 {[%clk 0:00:25]}  e4 {[%clk 0:00:12]} 42. fxe4 {[%clk 0:00:22]}  dxe4 {[%clk 0:00:11]} 43. Nb3 {[%clk 0:00:23]}  e3 {[%clk 0:00:10]} 44. Rd1 {[%clk 0:00:21]}  e2 {[%clk 0:00:10]} 45. Nd4+ {[%clk 0:00:17]}  Kb7 {[%clk 0:00:10]} 46. Re1 {[%clk 0:00:18]}  g4 {[%clk 0:00:09]} 47. b5 {[%clk 0:00:14]}  Bg7 {[%clk 0:00:09]} 48. Nf5 {[%clk 0:00:09]}  Bf8 {[%clk 0:00:10]} 49. Nd4 {[%clk 0:00:08]}  Bc5 {[%clk 0:00:10]} 50. Kc1 {[%clk 0:00:06]}  f3 {[%clk 0:00:09]} 51. gxf3 {[%clk 0:00:07]}  Bxd4 {[%clk 0:00:10]} 52. fxg4 {[%clk 0:00:07]}  Bf2 {[%clk 0:00:10]} 53. Kd2 {[%clk 0:00:05]}  Bxe1+ {[%clk 0:00:08]} 54. Kxe1 {[%clk 0:00:06]}  Rf8 {[%clk 0:00:09]} 55. gxh5 {[%clk 0:00:05]}  Rf1+ {[%clk 0:00:09]} 56. Kd2 {[%clk 0:00:06]}  e1=Q+ {[%clk 0:00:10]} 0-1


[Site "https://www.chess.com"]

[Event "Titled Tuesday Blitz April 26 Early 2022"]
[White "Ronka, Erik"]
[Black "Jaferian, Koosha"]
[WhiteFideId "505080"]
[BlackFideId "12507440"]
[WhiteElo "2264"]
[BlackElo "2030"]
[Result "0-1"]
[Round "08"]
[TimeControl "180+1"]
[Date "2022.04.26"]
[WhiteClock "0:00:13"]
[BlackClock "0:01:14"]

1. e4 {[%clk 0:03:00]}  c6 {[%clk 0:03:00]} 2. Nf3 {[%clk 0:02:59]}  d5 {[%clk 0:03:01]} 3. d3 {[%clk 0:02:59]}  g6 {[%clk 0:02:59]} 4. e5 {[%clk 0:02:58]}  Bg7 {[%clk 0:02:59]} 5. d4 {[%clk 0:02:58]}  Bg4 {[%clk 0:02:59]} 6. h3 {[%clk 0:02:52]}  Bxf3 {[%clk 0:02:59]} 7. Qxf3 {[%clk 0:02:53]}  e6 {[%clk 0:02:59]} 8. c3 {[%clk 0:02:40]}  Ne7 {[%clk 0:02:59]} 9. Bd3 {[%clk 0:02:41]}  c5 {[%clk 0:02:59]} 10. O-O {[%clk 0:02:41]}  Nbc6 {[%clk 0:03:00]} 11. Be3 {[%clk 0:02:40]}  cxd4 {[%clk 0:03:00]} 12. cxd4 {[%clk 0:02:40]}  O-O {[%clk 0:03:01]} 13. Nd2 {[%clk 0:02:34]}  Rc8 {[%clk 0:03:01]} 14. Nb3 {[%clk 0:02:34]}  Nb4 {[%clk 0:02:55]} 15. Qe2 {[%clk 0:02:30]}  Nxd3 {[%clk 0:02:55]} 16. Qxd3 {[%clk 0:02:31]}  Nf5 {[%clk 0:02:55]} 17. Bd2 {[%clk 0:02:27]}  Rc4 {[%clk 0:02:46]} 18. Bc3 {[%clk 0:02:23]}  b6 {[%clk 0:02:37]} 19. Nd2 {[%clk 0:02:23]}  Rc6 {[%clk 0:02:37]} 20. Bb4 {[%clk 0:02:11]}  Re8 {[%clk 0:02:34]} 21. Rfc1 {[%clk 0:02:11]}  Qc7 {[%clk 0:02:30]} 22. Rc3 {[%clk 0:01:55]}  Rc8 {[%clk 0:02:29]} 23. Rac1 {[%clk 0:01:54]}  Qd7 {[%clk 0:01:50]} 24. g4 {[%clk 0:01:41]}  Nh4 {[%clk 0:01:40]} 25. Kh2 {[%clk 0:01:34]}  g5 {[%clk 0:01:40]} 26. Nb3 {[%clk 0:01:24]}  Rxc3 {[%clk 0:01:35]} 27. Rxc3 {[%clk 0:01:25]}  Ng6 {[%clk 0:01:32]} 28. Qa6 {[%clk 0:01:21]}  Rxc3 {[%clk 0:01:31]} 29. bxc3 {[%clk 0:01:19]}  Nf4 {[%clk 0:01:32]} 30. a4 {[%clk 0:01:16]}  h6 {[%clk 0:01:31]} 31. Qb5 {[%clk 0:01:14]}  Qc8 {[%clk 0:01:25]} 32. a5 {[%clk 0:01:09]}  bxa5 {[%clk 0:01:24]} 33. Qxa5 {[%clk 0:01:09]}  Qc4 {[%clk 0:01:19]} 34. Qa2 {[%clk 0:00:38]}  Qf1 {[%clk 0:01:15]} 35. f3 {[%clk 0:00:13]}  Ne2 {[%clk 0:01:14]} 0-1


[Site "https://www.chess.com"]

[Event "Titled Tuesday Blitz April 26 Early 2022"]
[White "Rosenberg, Evan S"]
[Black "Cagara, Paulina"]
[WhiteFideId "2019299"]
[BlackFideId "1124870"]
[WhiteElo "2352"]
[BlackElo "1780"]
[Result "0-1"]
[Round "08"]
[TimeControl "180+1"]
[Date "2022.04.26"]
[WhiteClock "0:00:01"]
[BlackClock "0:00:24"]

1. d4 {[%clk 0:03:00]}  f5 {[%clk 0:02:39]} 2. g3 {[%clk 0:02:58]}  Nf6 {[%clk 0:02:38]} 3. Bg2 {[%clk 0:02:58]}  g6 {[%clk 0:02:39]} 4. Nh3 {[%clk 0:02:57]}  Bg7 {[%clk 0:02:39]} 5. Nf4 {[%clk 0:02:58]}  d6 {[%clk 0:02:37]} 6. d5 {[%clk 0:02:58]}  O-O {[%clk 0:02:35]} 7. h4 {[%clk 0:02:58]}  c6 {[%clk 0:02:30]} 8. c4 {[%clk 0:02:57]}  cxd5 {[%clk 0:02:30]} 9. cxd5 {[%clk 0:02:57]}  Qa5+ {[%clk 0:02:28]} 10. Bd2 {[%clk 0:02:45]}  Qb6 {[%clk 0:02:27]} 11. Nc3 {[%clk 0:02:02]}  Na6 {[%clk 0:02:23]} 12. h5 {[%clk 0:02:01]}  g5 {[%clk 0:02:23]} 13. h6 {[%clk 0:02:01]}  Bh8 {[%clk 0:02:23]} 14. Ne6 {[%clk 0:01:55]}  Bxe6 {[%clk 0:02:22]} 15. dxe6 {[%clk 0:01:56]}  Ng4 {[%clk 0:01:57]} 16. O-O {[%clk 0:01:45]}  Bf6 {[%clk 0:01:52]} 17. Nd5 {[%clk 0:01:43]}  Qxb2 {[%clk 0:01:41]} 18. Rb1 {[%clk 0:01:43]}  Qxa2 {[%clk 0:01:40]} 19. Nxf6+ {[%clk 0:01:24]}  exf6 {[%clk 0:01:40]} 20. e7 {[%clk 0:01:19]}  Rf7 {[%clk 0:01:34]} 21. Rxb7 {[%clk 0:01:09]}  Re8 {[%clk 0:01:31]} 22. Bxg5 {[%clk 0:00:48]}  fxg5 {[%clk 0:01:14]} 23. Bd5 {[%clk 0:00:42]}  Qa5 {[%clk 0:01:02]} 24. Rxa7 {[%clk 0:00:34]}  Qb6 {[%clk 0:00:56]} 25. Bxf7+ {[%clk 0:00:32]}  Kxf7 {[%clk 0:00:55]} 26. Qd5+ {[%clk 0:00:31]}  Kg6 {[%clk 0:00:54]} 27. Rb7 {[%clk 0:00:15]}  Qc5 {[%clk 0:00:54]} 28. Qe6+ {[%clk 0:00:14]}  Nf6 {[%clk 0:00:52]} 29. Rbb1 {[%clk 0:00:09]}  Qe5 {[%clk 0:00:48]} 30. Qxe5 {[%clk 0:00:09]}  dxe5 {[%clk 0:00:48]} 31. Rb7 {[%clk 0:00:10]}  Nc5 {[%clk 0:00:46]} 32. Rc7 {[%clk 0:00:08]}  Nce4 {[%clk 0:00:46]} 33. Rd1 {[%clk 0:00:07]}  f4 {[%clk 0:00:40]} 34. Rd8 {[%clk 0:00:07]}  Kf7 {[%clk 0:00:37]} 35. Rxe8 {[%clk 0:00:07]}  Kxe8 {[%clk 0:00:36]} 36. gxf4 {[%clk 0:00:07]}  gxf4 {[%clk 0:00:36]} 37. f3 {[%clk 0:00:07]}  Ng3 {[%clk 0:00:34]} 38. Kf2 {[%clk 0:00:07]}  Nf5 {[%clk 0:00:32]} 39. Rc8+ {[%clk 0:00:07]}  Kxe7 {[%clk 0:00:32]} 40. Ra8 {[%clk 0:00:08]}  Ke6 {[%clk 0:00:31]} 41. Rf8 {[%clk 0:00:06]}  Nxh6 {[%clk 0:00:30]} 42. Ra8 {[%clk 0:00:06]}  Nf5 {[%clk 0:00:30]} 43. Ra6+ {[%clk 0:00:06]}  Nd6 {[%clk 0:00:30]} 44. Ra1 {[%clk 0:00:06]}  h5 {[%clk 0:00:30]} 45. Rh1 {[%clk 0:00:06]}  Kf5 {[%clk 0:00:30]} 46. Rg1 {[%clk 0:00:06]}  e4 {[%clk 0:00:30]} 47. fxe4+ {[%clk 0:00:06]}  Ndxe4+ {[%clk 0:00:29]} 48. Ke1 {[%clk 0:00:05]}  Ng4 {[%clk 0:00:29]} 49. Rh1 {[%clk 0:00:05]}  Kg5 {[%clk 0:00:29]} 50. Rf1 {[%clk 0:00:03]}  Ng3 {[%clk 0:00:29]} 51. Rf3 {[%clk 0:00:03]}  h4 {[%clk 0:00:28]} 52. Ra3 {[%clk 0:00:03]}  h3 {[%clk 0:00:28]} 53. Ra5+ {[%clk 0:00:04]}  Kh4 {[%clk 0:00:28]} 54. Kd2 {[%clk 0:00:05]}  h2 {[%clk 0:00:28]} 55. Ra1 {[%clk 0:00:05]}  Nf2 {[%clk 0:00:27]} 56. Kc3 {[%clk 0:00:04]}  Nxe2+ {[%clk 0:00:26]} 57. Kc4 {[%clk 0:00:03]}  Ng1 {[%clk 0:00:26]} 58. Ra8 {[%clk 0:00:03]}  Kg3 {[%clk 0:00:26]} 59. Rg8+ {[%clk 0:00:03]}  Ng4 {[%clk 0:00:25]} 60. Rh8 {[%clk 0:00:03]}  Nh3 {[%clk 0:00:26]} 61. Rd8 {[%clk 0:00:01]}  h1=Q {[%clk 0:00:25]} 62. Rd3+ {[%clk 0:00:02]}  f3 {[%clk 0:00:25]} 63. Kc3 {[%clk 0:00:02]}  Qc1+ {[%clk 0:00:24]} 64. Kb3 {[%clk 0:00:02]}  Ne5 {[%clk 0:00:24]} 65. Rc3 {[%clk 0:00:02]}  Qb1+ {[%clk 0:00:24]} 66. Ka3 {[%clk 0:00:02]}  Nf4 {[%clk 0:00:24]} 67. Ka4 {[%clk 0:00:01]}  Ned3 {[%clk 0:00:24]} 0-1


[Site "https://www.chess.com"]

[Event "Titled Tuesday Blitz April 26 Early 2022"]
[White "Rozman, Levy"]
[Black "Matamoros Franco, Carlos S."]
[WhiteFideId "2039877"]
[BlackFideId "3600017"]
[WhiteElo "2376"]
[BlackElo "2554"]
[Result "1-0"]
[Round "08"]
[TimeControl "180+1"]
[Date "2022.04.26"]
[WhiteClock "0:00:43"]
[BlackClock "0:00:05"]

1. d4 {[%clk 0:03:00]}  Nf6 {[%clk 0:02:59]} 2. Bg5 {[%clk 0:02:59]}  d5 {[%clk 0:02:56]} 3. e3 {[%clk 0:02:59]}  c5 {[%clk 0:02:53]} 4. c3 {[%clk 0:02:59]}  e6 {[%clk 0:02:29]} 5. Nd2 {[%clk 0:02:53]}  Be7 {[%clk 0:02:14]} 6. Bd3 {[%clk 0:02:53]}  b6 {[%clk 0:02:13]} 7. f4 {[%clk 0:02:51]}  O-O {[%clk 0:02:11]} 8. Ngf3 {[%clk 0:02:46]}  Ba6 {[%clk 0:02:05]} 9. Qe2 {[%clk 0:02:44]}  Bxd3 {[%clk 0:01:57]} 10. Qxd3 {[%clk 0:02:44]}  Nbd7 {[%clk 0:01:56]} 11. Bxf6 {[%clk 0:02:40]}  Nxf6 {[%clk 0:01:52]} 12. O-O {[%clk 0:02:40]}  Rc8 {[%clk 0:01:52]} 13. Ne5 {[%clk 0:02:40]}  Ne8 {[%clk 0:01:51]} 14. Rf3 {[%clk 0:02:39]}  f5 {[%clk 0:01:49]} 15. g4 {[%clk 0:02:36]}  Nd6 {[%clk 0:01:45]} 16. gxf5 {[%clk 0:02:35]}  exf5 {[%clk 0:01:46]} 17. Kh1 {[%clk 0:02:35]}  Ne4 {[%clk 0:01:41]} 18. Qe2 {[%clk 0:02:23]}  Bd6 {[%clk 0:01:32]} 19. Rg1 {[%clk 0:02:19]}  Qe7 {[%clk 0:01:29]} 20. Nxe4 {[%clk 0:02:17]}  fxe4 {[%clk 0:01:26]} 21. Rfg3 {[%clk 0:02:00]}  Bxe5 {[%clk 0:01:25]} 22. dxe5 {[%clk 0:02:00]}  Rf7 {[%clk 0:01:20]} 23. Qh5 {[%clk 0:01:54]}  Rc6 {[%clk 0:01:11]} 24. Rh3 {[%clk 0:01:47]}  g6 {[%clk 0:01:06]} 25. f5 {[%clk 0:01:29]}  Kh8 {[%clk 0:00:10]} 26. fxg6 {[%clk 0:01:03]}  Rg7 {[%clk 0:00:08]} 27. Rhg3 {[%clk 0:00:48]}  Re6 {[%clk 0:00:05]} 28. Rg5 {[%clk 0:00:43]} 1-0


[Site "https://www.chess.com"]

[Event "Titled Tuesday Blitz April 26 Early 2022"]
[White "Samaganova, Aleksandra"]
[Black "Hartikainen, Jarmo"]
[WhiteFideId "13800221"]
[BlackFideId "503134"]
[WhiteElo "1859"]
[BlackElo "2109"]
[Result "0-1"]
[Round "08"]
[TimeControl "180+1"]
[Date "2022.04.26"]
[WhiteClock "0:00:09"]
[BlackClock "0:00:04"]

1. c4 {[%clk 0:03:00]}  Nf6 {[%clk 0:02:58]} 2. Nc3 {[%clk 0:03:00]}  e5 {[%clk 0:02:58]} 3. Nf3 {[%clk 0:03:00]}  Nc6 {[%clk 0:02:57]} 4. a3 {[%clk 0:03:00]}  Be7 {[%clk 0:02:57]} 5. e3 {[%clk 0:02:59]}  O-O {[%clk 0:02:53]} 6. b4 {[%clk 0:02:59]}  d5 {[%clk 0:02:37]} 7. cxd5 {[%clk 0:02:59]}  Nxd5 {[%clk 0:02:37]} 8. Qc2 {[%clk 0:02:53]}  a6 {[%clk 0:02:22]} 9. Bb2 {[%clk 0:02:53]}  Be6 {[%clk 0:02:15]} 10. Be2 {[%clk 0:02:50]}  Kh8 {[%clk 0:02:13]} 11. O-O {[%clk 0:02:47]}  f6 {[%clk 0:02:13]} 12. Rfd1 {[%clk 0:02:45]}  Qc8 {[%clk 0:02:04]} 13. d4 {[%clk 0:02:41]}  exd4 {[%clk 0:01:54]} 14. Nxd4 {[%clk 0:02:41]}  Nxd4 {[%clk 0:01:50]} 15. Rxd4 {[%clk 0:02:41]}  c6 {[%clk 0:01:40]} 16. Bf3 {[%clk 0:02:23]}  Nb6 {[%clk 0:01:26]} 17. Rad1 {[%clk 0:02:14]}  Qc7 {[%clk 0:01:21]} 18. Ne4 {[%clk 0:02:07]}  Rad8 {[%clk 0:01:14]} 19. Nc5 {[%clk 0:02:06]}  Bg8 {[%clk 0:00:50]} 20. h3 {[%clk 0:01:52]}  Rxd4 {[%clk 0:00:50]} 21. Rxd4 {[%clk 0:01:50]}  Rd8 {[%clk 0:00:50]} 22. Bg4 {[%clk 0:01:40]}  Rxd4 {[%clk 0:00:49]} 23. Bxd4 {[%clk 0:01:39]}  Nc4 {[%clk 0:00:47]} 24. Qc3 {[%clk 0:01:27]}  Ne5 {[%clk 0:00:32]} 25. Be6 {[%clk 0:01:20]}  Bxe6 {[%clk 0:00:21]} 26. Nxe6 {[%clk 0:01:20]}  Qd6 {[%clk 0:00:20]} 27. Nc5 {[%clk 0:01:11]}  Qc7 {[%clk 0:00:18]} 28. Ne4 {[%clk 0:01:03]}  h6 {[%clk 0:00:16]} 29. Ng3 {[%clk 0:01:02]}  Kh7 {[%clk 0:00:16]} 30. Qc2+ {[%clk 0:01:00]}  Kh8 {[%clk 0:00:15]} 31. Nf5 {[%clk 0:00:58]}  Qd7 {[%clk 0:00:14]} 32. Nh4 {[%clk 0:00:51]}  Qe6 {[%clk 0:00:13]} 33. Qe4 {[%clk 0:00:40]}  Kg8 {[%clk 0:00:13]} 34. Qc2 {[%clk 0:00:34]}  Qf7 {[%clk 0:00:12]} 35. Nf5 {[%clk 0:00:32]}  Qe6 {[%clk 0:00:12]} 36. e4 {[%clk 0:00:21]}  Bf8 {[%clk 0:00:12]} 37. Be3 {[%clk 0:00:18]}  Nc4 {[%clk 0:00:12]} 38. Bc1 {[%clk 0:00:14]}  Ne5 {[%clk 0:00:11]} 39. Nd4 {[%clk 0:00:14]}  Qc4 {[%clk 0:00:11]} 40. Qd1 {[%clk 0:00:08]}  Qd3 {[%clk 0:00:11]} 41. Qxd3 {[%clk 0:00:05]}  Nxd3 {[%clk 0:00:12]} 42. Be3 {[%clk 0:00:04]}  Kf7 {[%clk 0:00:13]} 43. Nf5 {[%clk 0:00:04]}  Be7 {[%clk 0:00:12]} 44. Kf1 {[%clk 0:00:04]}  Ne5 {[%clk 0:00:11]} 45. f4 {[%clk 0:00:03]}  Nc4 {[%clk 0:00:12]} 46. Bd4 {[%clk 0:00:03]}  Nxa3 {[%clk 0:00:11]} 47. Ke2 {[%clk 0:00:02]}  Bxb4 {[%clk 0:00:10]} 48. Ne3 {[%clk 0:00:01]}  a5 {[%clk 0:00:09]} 49. Bb2 {[%clk 0:00:01]}  b5 {[%clk 0:00:08]} 50. Nd1 {[%clk 0:00:01]}  Be7 {[%clk 0:00:07]} 51. e5 {[%clk 0:00:01]}  Nc4 {[%clk 0:00:06]} 52. Bc3 {[%clk 0:00:01]}  fxe5 {[%clk 0:00:06]} 53. fxe5 {[%clk 0:00:02]}  Ke6 {[%clk 0:00:06]} 54. Ba1 {[%clk 0:00:02]}  Nxe5 {[%clk 0:00:06]} 55. Nf2 {[%clk 0:00:03]}  b4 {[%clk 0:00:05]} 56. Ne4 {[%clk 0:00:04]}  a4 {[%clk 0:00:05]} 57. Kd1 {[%clk 0:00:04]}  a3 {[%clk 0:00:06]} 58. Nd2 {[%clk 0:00:04]}  c5 {[%clk 0:00:05]} 59. Nb3 {[%clk 0:00:05]}  c4 {[%clk 0:00:05]} 60. Nd4+ {[%clk 0:00:05]}  Kd5 {[%clk 0:00:06]} 61. Nc2 {[%clk 0:00:06]}  a2 {[%clk 0:00:05]} 62. Nxb4+ {[%clk 0:00:05]}  Ke4 {[%clk 0:00:05]} 63. Kc2 {[%clk 0:00:06]}  Kf4 {[%clk 0:00:04]} 64. Nxa2 {[%clk 0:00:07]}  Bf6 {[%clk 0:00:04]} 65. Bd4 {[%clk 0:00:07]}  Kg3 {[%clk 0:00:04]} 66. Be3 {[%clk 0:00:07]}  Kxg2 {[%clk 0:00:05]} 67. h4 {[%clk 0:00:07]}  Kg3 {[%clk 0:00:04]} 68. h5 {[%clk 0:00:07]}  Kg4 {[%clk 0:00:05]} 69. Bd2 {[%clk 0:00:07]}  Kxh5 {[%clk 0:00:05]} 70. Nc3 {[%clk 0:00:08]}  g5 {[%clk 0:00:05]} 71. Nd5 {[%clk 0:00:09]}  Kg6 {[%clk 0:00:04]} 72. Bc3 {[%clk 0:00:09]}  g4 {[%clk 0:00:04]} 73. Ne3 {[%clk 0:00:09]}  h5 {[%clk 0:00:04]} 74. Kd2 {[%clk 0:00:08]}  Nf3+ {[%clk 0:00:04]} 75. Kc2 {[%clk 0:00:08]}  Bxc3 {[%clk 0:00:04]} 76. Kxc3 {[%clk 0:00:09]}  Kg5 {[%clk 0:00:04]} 77. Kxc4 {[%clk 0:00:10]}  g3 {[%clk 0:00:04]} 78. Ng2 {[%clk 0:00:09]}  h4 {[%clk 0:00:03]} 79. Kd3 {[%clk 0:00:09]}  h3 {[%clk 0:00:03]} 80. Ne3 {[%clk 0:00:09]}  h2 {[%clk 0:00:03]} 81. Ke2 {[%clk 0:00:09]}  h1=Q {[%clk 0:00:04]} 82. Nf1 {[%clk 0:00:09]}  Qg2+ {[%clk 0:00:04]} 0-1


[Site "https://www.chess.com"]